Cogmind - Beta 14 @@@ ROGUE MODE // 2025.01.11 @ 13:59:28 Player: abnormality Result: Destroyed by G-47 Trooper with Particle Gun Performance ------------- Evolutions (3) 1500 Regions Visited (5) 1000 Robots Destroyed (67) 335 Value Destroyed (2405) 2405 Prototype IDs (1) 20 Alien Tech Used (0) 0 Bonus (35) 35 TOTAL SCORE: 5295 Bonus ------- Follower Combat Kills 35 Cogmind --------- Core Integrity 0/700 Matter 300/300 Energy 100/100 System Corruption 19% Temperature Warm (137) Movement Core (700) Ox13 Location -7/Factory Parts ------- > --- POWER (2) -------- (None) > --- PROPULSION (3) --- (None) > --- UTILITY (5) ------ Large Storage Unit Large Storage Unit > --- WEAPON (3) ------- (None) > --- INVENTORY (15) --- (None) Peak State ------------ > --- POWER ------------ Ion Engine Improved Deuterium Engine > --- PROPULSION ------- Light Treads Light Treads Light Treads > --- UTILITY ---------- Improved Heat Sink Improved Heat Sink Large Storage Unit ECM Suite Weapon Shielding > --- WEAPON ----------- Particle Gun Pulse Rifle Enhanced Autogun > --- INVENTORY -------- Light Ion Engine Improved Deuterium Engine Light Treads Aluminum Leg Aluminum Leg Aluminum Leg Large Storage Unit Plasma Cannon Datajack [Rating: 27] Favorites ----------- Power Ion Engine Engine Ion Engine Power Core Light Nuclear Core Propulsion Light Treads Treads Light Treads Leg Aluminum Leg Utility ECM Suite Device ECM Suite Storage Large Storage Unit Protection Weapon Shielding Weapon Particle Cannon Energy Gun Pulse Rifle Energy Cannon Particle Cannon Ballistic Gun Enhanced Autogun Launcher Grenade Launcher Special Melee Weapon Datajack Build | -11 -10 -9 -9 -8 -7 ------- Run | Yrd Mat Mat Min Mat Fac Slots Evolved 6 | . . 2 . 2 2 Power 1 | . . . . 1 . Propulsion 1 | . . 1 . . . Utility 3 | . . 1 . 1 1 Weapon 1 | . . . . . 1 Parts Attached 71 | 7 10 18 . 16 20 Power 16 | 1 1 3 . 5 6 Engine 11 | 1 1 2 . 3 4 Core 5 | . . 1 . 2 2 Reactor . | . . . . . . Propulsion 14 | 2 . 4 . 3 5 Treads 11 | 2 . 4 . 3 2 Leg 3 | . . . . . 3 Wheel . | . . . . . . Hover . | . . . . . . Flight . | . . . . . . Utility 14 | 2 2 3 . 2 5 Device 5 | 1 1 . . . 3 Storage 7 | 1 1 2 . 1 2 Processor . | . . . . . . Hackware . | . . . . . . Protection 2 | . . 1 . 1 . Artifact . | . . . . . . Weapon 27 | 2 7 8 . 6 4 Energy Gun 8 | 2 2 . . 2 2 Energy Cannon 8 | . . 6 . 1 1 Ballistic Gun 3 | . 1 . . 2 . Ballistic Cannon . | . . . . . . Launcher 3 | . 2 . . 1 . Special Weapon . | . . . . . . Impact Weapon . | . . . . . . Slashing Weapon . | . . . . . . Piercing Weapon . | . . . . . . Special Melee Weapon 5 | . 2 2 . . 1 Unidentified Prototypes 1 | . . . . 1 . Parts Lost 46 | . 3 4 . 13 26 Power 14 | . 1 2 . 4 7 Propulsion 12 | . . 2 . 2 8 Utility 7 | . 1 . . 1 5 Weapon 13 | . 1 . . 6 6 Highest Loss Streak 12 | . 1 2 . 4 12 To Critical Strikes . | . . . . . . Average Slot Usage (%) 84 | . 91 79 100 73 86 Engine 10 | . 13 9 11 8 10 Core 2 | . . . . 5 3 Treads 22 | . 28 25 33 25 16 Leg 1 | . . . . . 5 Device 11 | . 6 11 11 9 14 Storage 10 | . 14 11 11 9 7 Protection 3 | . . . 11 3 5 Energy Gun 9 | . 20 . . . 12 Energy Cannon 5 | . . 12 22 10 1 Ballistic Gun 3 | . 1 3 . 2 5 Special Melee Weapon 1 | . 3 5 . . . Peak Build Rating 27 | 7 7 13 13 17 27 Average Rating 14 | 5 6 9 13 11 23 On Entrance 9 | . 7 7 13 13 17 Naked Turns . | . . . . . . Heaviest Build 62 | 14 18 30 30 45 62 Greatest Support 60 | 40 40 60 60 60 60 Greatest Overweight (x) 13 | . . 1 . . 13 Average Overweight (x) . | . . . . . . Largest Inventory Capacity 25 | 8 10 25 10 15 15 Average Capacity 12 | 7 8 10 10 14 15 Most Carried 10 | 5 7 10 9 9 10 Average Carried 5 | 2 3 7 9 4 6 Final Capacity 15 | 8 10 10 10 15 15 Final Carried 9 | 3 5 9 9 3 . Class Distribution -------------------- 43% | Mutant 31% | Scavenger-Mutant 24% | Scavenger-Tank Dominant Class ---------------- Mutant | -10/Materials Mutant | -9/Materials Scavenger-Mutant | -9/Mines Scavenger-Mutant | -8/Materials Scavenger-Tank | -7/Factory Resources | -11 -10 -9 -9 -8 -7 ----------- Run | Yrd Mat Mat Min Mat Fac Matter Collected 1267 | 270 43 302 . 256 396 Remotely . | . . . . . . Salvage Created 2717 | 122 289 411 . 739 1156 Parts 155 | 10 22 32 . 41 50 Haulers Intercepted 1 | . . . . 1 . Recyclers Shooed 3 | . 2 . . 1 . Parts Field Recycled . | . . . . . . Retrieved Matter . | . . . . . . Parts Self-Destructed . | . . . . . . Prevented . | . . . . . . Kills | -11 -10 -9 -9 -8 -7 ------- Run | Yrd Mat Mat Min Mat Fac Combat Hostiles Destroyed 53 | . 9 7 . 17 20 Guns 25 | . 6 1 . 3 15 Cannons 19 | . . 6 . 10 3 AOE 7 | . 3 . . 3 1 Classes Destroyed 12 | 2 4 1 . 3 2 Tunneler 4 | 2 . . . . 2 Hauler 1 | . . . . 1 . Recycler 1 | 1 . . . . . Operator 2 | . 1 . . 1 . Watcher 6 | . 2 2 . . 2 Swarmer 7 | . 3 . . 4 . Grunt 29 | . 6 3 . 8 12 Brawler 2 | . . . . 2 . Duelist 1 | . . . . . 1 Sentry 10 | . . 4 . 2 4 Hunter 2 | . . . . 1 1 Programmer 2 | . . . . . 2 Best Kill Streak 4 | 3 4 2 . 4 4 Combat Bots Only 4 | . 3 2 . 4 4 Max Kills in Single Turn 1 | 1 1 1 . 1 1 Gunslinging . | . . . . . . Exploded 1 | . 1 . . 1 1 Melee . | . . . . . . Uniques/NPCs Destroyed . | . . . . . . Combat | -11 -10 -9 -9 -8 -7 -------- Run | Yrd Mat Mat Min Mat Fac Hostile Shots Fired 596 | . 59 54 1 115 367 Missed 196 | . 11 11 . 39 135 Damage Taken 5157 | . 633 605 12 1137 2770 Core 1071 | . 139 76 . 151 705 Absorbed by Shields . | . . . . . . Redirected to Shielding 50 | . . . . . 50 Regen/Repaired (Parts) 69 | . . 69 . . . Core Remaining (%) 74 | 100 44 . 81 72 . Volleys Fired 214 | 8 38 29 . 54 85 Largest 3 | 2 2 2 . 2 3 Hottest 153 | 80 80 136 . 136 153 Shots Fired 396 | 15 67 46 . 84 184 Gun 265 | 15 61 7 . 25 157 Cannon 122 | . . 39 . 56 27 Launcher 9 | . 6 . . 3 . Special . | . . . . . . Kinetic 90 | . 3 7 . 25 55 Thermal 227 | 8 32 35 . 49 103 Explosive 9 | . 6 . . 3 . Electromagnetic 70 | 7 26 4 . 7 26 Robot Hit Streak 16 | 6 13 3 . 10 16 Robot Miss Streak 3 | 1 2 3 . 3 3 Penetration Max . | . . . . . . Secondary Targets 2 | . . . . . 2 Max Gunslinging Chain 1 | . . . . . 1 Shots Hit Robots 264 | 11 45 28 . 53 127 Core Hits 118 | 4 20 11 . 29 54 Critical Kills . | . . . . . . Critical Parts Destroyed . | . . . . . . Critical Strikes 2 | . . . . . 2 Burn 2 | . . . . . 2 Melee Attacks 10 | . 3 5 . . 2 Impact . | . . . . . . Slashing . | . . . . . . Piercing . | . . . . . . Sneak Attacks 6 | . 2 4 . . . Combat Hostiles . | . . . . . . Follow-up Attacks . | . . . . . . Damage Inflicted 5314 | 128 918 445 . 1291 2532 Guns 2865 | 128 501 50 . 245 1941 Cannons 1567 | . . 395 . 769 403 Explosions 861 | . 417 . . 277 167 Melee . | . . . . . . Ramming 21 | . . . . . 21 Kinetic 907 | . 24 50 . 245 588 Thermal 2964 | 89 311 326 . 712 1526 Explosive 600 | . 380 . . 220 . Electromagnetic 822 | 39 203 69 . 114 397 Impact . | . . . . . . Slashing . | . . . . . . Piercing . | . . . . . . Highest Corruption 19 | . . . . . 19 Average Corruption 1 | . . . . . 1 Corruption Purged . | . . . . . . Corruption Blocked . | . . . . . . Effects 15 | . . . . . 15 Message Errors 2 | . . . . . 2 Matter Fused 4 | . . . . . 4 Heat Flow Errors 2 | . . . . . 2 Parts Fused 1 | . . . . . 1 Data Loss (minor) 2 | . . . . . 2 Data Loss (major) 2 | . . . . . 2 Weapon Failures 2 | . . . . . 2 Overload Shots . | . . . . . . Overflow Damage 28 | . 1 11 . 16 . Projectiles 11 | . . 11 . . . Explosions 17 | . 1 . . 16 . Melee . | . . . . . . Knockbacks . | . . . . . . Impact . | . . . . . . Kinetic . | . . . . . . Secondary . | . . . . . . Self-Inflicted Damage 146 | . 81 . . 65 . Shots 7 | . 4 . . 3 . Rammed 3 | . . . . . 3 Targets Rammed 3 | . . . . . 3 Kicked . | . . . . . . Crushed . | . . . . . . Highest Temperature 465 | 72 160 338 . 431 465 Average Temperature 107 | 35 51 117 . 132 112 Received Heat Transfer 2022 | . 285 267 6 513 951 Effects 19 | . . 5 . 7 7 Shutdowns 4 | . . 1 . 1 2 Energy Bleed 2 | . . . . 2 . Interference 10 | . . 4 . 2 4 Matter Decay 2 | . . . . 1 1 Short Circuit 1 | . . . . 1 . Siege Activations . | . . . . . . Robots Corrupted . | . . . . . . Combat Hostiles . | . . . . . . Parts Fried 3 | . . 1 . . 2 Impact Corruptions . | . . . . . . Robots Melted 1 | . . . . . 1 Combat Hostiles 1 | . . . . . 1 Parts Melted 9 | . 1 1 . 1 6 Heat Transferred 5908 | 200 675 592 . 1234 3207 Parts Sabotaged . | . . . . . . Parts Stolen . | . . . . . . Parts Stripped . | . . . . . . Power Chain Reactions 5 | . 1 . . 1 3 Alert | -11 -10 -9 -9 -8 -7 ------- Run | Yrd Mat Mat Min Mat Fac Peak Influence 292 | 15 207 267 61 292 220 Initial 77 | . 9 77 61 23 64 Average 89 | 5 94 105 61 108 77 Maximum Alert Level 1 | . 1 1 . 1 1 Low Security (%) 91 | 100 88 90 100 79 97 Level 1 8 | . 11 9 . 20 2 Level 2 . | . . . . . . Level 3 . | . . . . . . Level 4 . | . . . . . . Level 5 . | . . . . . . High Security . | . . . . . . Max Security . | . . . . . . Squads Dispatched 10 | . 4 . . 2 4 Investigation 1 | . 1 . . . . Extermination 2 | . . . . . 2 Reinforcement 6 | . 3 . . 2 1 Assault . | . . . . . . Garrison 1 | . . . . . 1 Intercept . | . . . . . . Searches Triggered . | . . . . . . Construction Impeded . | . . . . . . Haulers Reinforced . | . . . . . . Active Scanning Responses . | . . . . . . Cargo Convoy Interrupts . | . . . . . . Stealth | -11 -10 -9 -9 -8 -7 --------- Run | Yrd Mat Mat Min Mat Fac Distress Signals 9 | . 1 4 . 2 2 Communications Jammed . | . . . . . . Distress Signals . | . . . . . . Times Spotted 98 | . 17 19 1 24 37 Peak Tracking Total 6 | . 4 6 . 5 6 Tactical Retreats 5 | . . 4 . . 1 Traps | -11 -10 -9 -9 -8 -7 ------- Run | Yrd Mat Mat Min Mat Fac Traps Triggered 3 | . 1 . . . 2 Indirectly . | . . . . . . Trap Hack Attempts . | . . . . . . Triggered . | . . . . . . Disarmed . | . . . . . . Reprogrammed . | . . . . . . Reused . | . . . . . . Traps Extracted . | . . . . . . Installed . | . . . . . . Triggered . | . . . . . . Machines | -11 -10 -9 -9 -8 -7 ---------- Run | Yrd Mat Mat Min Mat Fac Machines Disabled 3 | . 1 . . 2 . Max in Single Turn 1 | . 1 . . 1 . Machines Repaired . | . . . . . . Machines Dismantled . | . . . . . . Machines Sabotaged . | . . . . . . Overloaded Fab Kills . | . . . . . . Hacking | -11 -10 -9 -9 -8 -7 --------- Run | Yrd Mat Mat Min Mat Fac Machines Accessed 7 | . 2 3 . 1 1 Terminals 6 | . 2 2 . 1 1 Fabricators . | . . . . . . Repair Stations 1 | . . 1 . . . Recycling Units . | . . . . . . Scanalyzers . | . . . . . . Garrison Access . | . . . . . . Total Hacks 15 | . 2 9 . 3 1 Successful 11 | . 2 6 . 2 1 Failed 4 | . . 3 . 1 . Catastrophic 1 | . . 1 . . . Database Lockouts . | . . . . . . Manual . | . . . . . . Terminals 12 | . 2 6 . 3 1 Fabricators . | . . . . . . Repair Stations 3 | . . 3 . . . Recycling Units . | . . . . . . Scanalyzers . | . . . . . . Garrison Access . | . . . . . . Terminal Hacks 9 | . 2 4 . 2 1 Record 1 | . 1 . . . . Branch Access Points 1 | . 1 . . . . Terminal Index 1 | . . 1 . . . Alert Level 3 | . . 2 . 1 . Unreport Threat 1 | . . 1 . . . Locate Traps 2 | . . . . 1 1 Fabricator Hacks . | . . . . . . Repair Station Hacks 2 | . . 2 . . . Scan Component 1 | . . 1 . . . Repair 1 | . . 1 . . . Recycling Unit Hacks . | . . . . . . Scanalyzer . | . . . . . . Garrison Access Hacks . | . . . . . . Unauthorized Hacks . | . . . . . . Terminals . | . . . . . . Fabricators . | . . . . . . Repair Stations . | . . . . . . Recycling Units . | . . . . . . Scanalyzers . | . . . . . . Garrison Access . | . . . . . . Data Cores Recovered . | . . . . . . Used . | . . . . . . Hacking Detections 3 | . . 2 . . 1 Full Trace Events . | . . . . . . Feedback Events . | . . . . . . Feedback Blocked . | . . . . . . Robot Schematics Acquired . | . . . . . . Robots Built . | . . . . . . Authchips . | . . . . . . Time . | . . . . . . Total Robot Build Rating . | . . . . . . Part Schematics Acquired . | . . . . . . Parts Built . | . . . . . . Authchips . | . . . . . . Time . | . . . . . . Total Part Build Rating . | . . . . . . Parts Repaired 1 | . . 1 . . . Time 26 | . . 26 . . . Parts Recycled . | . . . . . . Recycled Matter . | . . . . . . Retrieved Matter . | . . . . . . Retrieved Components . | . . . . . . Parts Scanalyzed . | . . . . . . Part Schematics Acquired . | . . . . . . Parts Damaged . | . . . . . . Bothacking | -11 -10 -9 -9 -8 -7 ------------ Run | Yrd Mat Mat Min Mat Fac Used RIF Installer . | . . . . . . Robots Hacked 7 | . 1 4 . . 2 Non-combat 4 | . 1 3 . . . Combat 3 | . . 1 . . 2 Robot Hacks Applied 7 | . 1 4 . . 2 parse_system 3 | . . 1 . . 2 no_distress 2 | . . 2 . . . find_recycling 1 | . 1 . . . . find_station 1 | . . 1 . . . Relay Couplers Released . | . . . . . . Fabnet Peak Effective % . | . . . . . . Robots Rewired . | . . . . . . Allies Hacked . | . . . . . . Hacks Repelled . | . . . . . . Allies | -11 -10 -9 -9 -8 -7 -------- Run | Yrd Mat Mat Min Mat Fac Total Allies 3 | . . . 3 . . Largest Group 3 | . . . 3 3 . Highest-Rated Group 40 | . . . 40 40 . Highest-Rated Ally 16 | . . . 16 16 . Total Orders 8 | . . . . 8 . STAY 4 | . . . . 4 . ROAM 1 | . . . . 1 . GUARD 3 | . . . . 3 . Ally Attacks 34 | . . . . 34 . Total Damage 366 | . . . . 366 . Kills 2 | . . . . 2 . Allies Corrupted 1 | . . . . 1 . Allies Melted . | . . . . . . Intel | -11 -10 -9 -9 -8 -7 ------- Run | Yrd Mat Mat Min Mat Fac Robot Analysis Total . | . . . . . . Derelict Logs Recovered . | . . . . . . Drone Launches . | . . . . . . Drone Recoveries . | . . . . . . Exploration | -11 -10 -9 -9 -8 -7 ------------- Run | Yrd Mat Mat Min Mat Fac Turns Passed 4662 | 116 1136 693 103 854 1760 Spaces Moved 2070 | 57 444 269 65 409 826 Core 15 | 13 . . . . 2 Treads 1903 | 44 444 269 65 409 672 Legs 152 | . . . . . 152 Wheels . | . . . . . . Hover . | . . . . . . Flight . | . . . . . . Fastest Speed 50 | 50 160 160 160 160 160 Average Speed 162 | 134 160 163 160 160 167 Slowest Speed 700 | 160 160 240 160 160 700 Overloaded Moves . | . . . . . . Propulsion Burnouts . | . . . . . . Robots Hopped . | . . . . . . Cave-ins Triggered . | . . . . . . Exploration Rate (%) 29 | 5 65 28 24 31 26 Regions Visited 5 Branch Regions 1 Pre-discovered Areas . | . . . . . . Known Exits Taken . | . . . . . . Unknown Exits Taken 5 | 1 1 1 1 1 . Scrap Searched . | . . . . . . Spaces Dug . | . . . . . . Terrain Destroyed 69 | . 34 . . 23 12 Melee . | . . . . . . Projectile . | . . . . . . AOE 69 | . 34 . . 23 12 Terrain Rammed . | . . . . . . Walls Destroyed . | . . . . . . Machines Disabled . | . . . . . . Actions | -11 -10 -9 -9 -8 -7 --------- Run | Yrd Mat Mat Min Mat Fac Total 2994 | 81 799 469 64 531 1050 Wait 563 | . 294 134 . 37 98 Move 2065 | 56 443 268 64 408 826 Hop . | . . . . . . Pick Up 58 | 10 8 13 . 12 15 Fast Attach . | . . . . . . Attach 50 | 7 3 7 . 14 19 Detach 1 | . . . . . 1 Swap 21 | . 7 11 . 2 1 Drop 9 | . 3 2 . 4 . Fire 214 | 8 38 29 . 54 85 Melee 10 | . 3 5 . . 2 Ram 2 | . . . . . 2 Kick . | . . . . . . Crush 1 | . . . . . 1 Escape Stasis . | . . . . . . Rewire . | . . . . . . Trap . | . . . . . . Miscellaneous . | . . . . . . Route ------- -11/Scrapyard -10/Materials (discovered 2 exits: *Mat / *Min) -9/Materials (discovered 2 exits: [*Min] / [*Sto]) -9/Mines -8/Materials -7/Factory History --------- Turn | Location | Event 7 | -11/Scrapyard | Discovered new exit (range 15) 117 | -11/Scrapyard | Entered Materials 308 | -10/Materials | Build established: Mutant 764 | -10/Materials | Core integrity fell below 50% 949 | -10/Materials | Discovered new exit (range 13) 1068 | -10/Materials | Identified exit to Mines 1170 | -10/Materials | Discovered new exit (range 11) 1253 | -10/Materials | Entered another Materials area 1253 | -9/Materials | Evolved 2 slots: Propulsion x1, Utility x1 1749 | -9/Materials | Repaired Lgt. Treads 1814 | -9/Materials | Discovered new exit (range 11) 1885 | -9/Materials | Discovered new exit (range 10) 1946 | -9/Materials | Entered Mines 1959 | -9/Mines | Assisted by bots powering up and referring to "LRC-V3" 2031 | -9/Mines | Discovered new exit (range 11) 2049 | -9/Mines | Entered Materials 2049 | -8/Materials | Accompanied by 3 allies 2049 | -8/Materials | Evolved 2 slots: Power x1, Utility x1 2093 | -8/Materials | Build established: Scavenger-Mutant 2810 | -8/Materials | Lost 4 parts (1p1n2w) 2824 | -8/Materials | Discovered new exit (range 14) 2903 | -8/Materials | Entered Factory 2903 | -7/Factory | Evolved 2 slots: Utility x1, Weapon x1 3339 | -7/Factory | Build established: Scavenger-Tank 3467 | -7/Factory | Garrison activated, responded to threat 4269 | -7/Factory | Lost 11 parts (1p4n3u3w) 4524 | -7/Factory | Build established: Scavenger-Mutant 4627 | -7/Factory | Core integrity fell below 50% 4644 | -7/Factory | System corruption reached 10% 4655 | -7/Factory | Core integrity fell below 20% 4663 | -7/Factory | Destroyed by G-47 Trooper with Particle Gun Last Messages --------------- 04645_ K-01 Serf collects debris. 04646_ Lgt. Ion Engine destroyed. 04646_ System corrupted by crushing effect (+5). 04647_ B-48 Gladiator heat damages Lgt. Treads, Imp. Light Armor Plating, Rnf. Deuterium Engine, Lgt. Treads. 04647_ M-28 Smith repairs G-47 Trooper. 04647_ Penetrated by Slug. 04648_ B-48 Gladiator overheating. 04650_ B-48 Gladiator heat spikes uncontrollably. 04650_ B-48 Gladiator overheating. 04650_ B-48 Gladiator critical meltdown. 04655_ Slammed into G-47 Trooper. 04655_ Destabilizing: System corrupted (+2). 04656_ System corrupted: Heat flow error (+294). 04658_ Penetrated by Slug. 04659_ K-01 Serf destroyed. 04659_ R-06 Scavenger collects Med. Matter Pod. 04661_ Penetrated by Slug. 04661_ M-28 Smith repairs G-47 Trooper. 04662_ R-06 Scavenger collects Wheel. Map ----- +----------------------------------------------------+ | ?????????????????????????????????????????????????? | | ?????????????????????????????????????????????????? | | ?????????????????????????????????????????????????? | | ?????????????????????????????????????????????????? | | ?????????????????????????????????????????????????? | | ?????????????????????????????????????????????????? | | ?????????????????????????????????????????????????? | | ?????????????????????????????????????????????????? | | ?????????????????????????????????????????????????? | | ?????????????????????????????????????????????????? | | ?????????????????????????????????????????????????? | | ?????????????????????????????????????????????????? | | ?????????????????????????????????????????????????? | | ?????????????????????????????????????????????????? | | ???????????????????????????? "???????????????????? | | ????????????????#??????????? "???????????????????? | | ???????????????## ?????????? ?????????? ?????? | | ????????????????+ ????????? """???????? "???"? | | ????????????????? ???????? ""?????????# "?? "? | | ?????????????????? "??????? ""?????????# "?? "? | | ??????????????????? ????? ??????????# ?? | | ???????????##########+######+####???????# """ "" | | ??????????? #???????# """ "" | | ?????????? r m #???????# """ "" | | ?????????? gkr #???????# | | ?????????? @ g #???????# | | ?????????? *r%g #???????# | | ?????????????#+############ #???????# | | ??????????????????????????# ######### | | ??????????????????????????#% " "" " | | ??????????????????????????# r h %" "F " | | ??????????????????????????# u """" | | ?????????????????########## k | | ?????????????????# # / | | ?????????????????# """ # ######### #### | | ?????????????????# = """ # # ## # | | ?????????????????# """ # # """ ## #[ | | ?????????????????# + # """ ## # = | | ?????????????????# """ # # """ ## # | | ?????????????????# """ # # ## /% | | ?????????????????# """ # # """ ## # | | ?????????????????# # # """ ## #% | | ?????????????????########## # """ ## # | | ??????????????????????????# # ## # | | ?????????????############## # """ ## # | | ?????????????# # # """ ## # | | ?????????????# # # """ ## # | | ?????????????# """"" # # # #### | | ?????????????# """"" # # #T #??? | | ?????????????# """ # ###+##### #### | +----------------------------------------------------+ Best States ------------- Heat Dissipation 62 Energy Generation 25 Energy Capacity 440 Matter Stores 300 Matter Capacity 300 Sight Range 16 Terrain Scan Density 10 ECM Strength 1 Armor Coverage 150 Weapon Shielding 33 Weapon Cycling 15 Evasion (%) 50 Recoil Reduction 3 Item Schematics ----------------- None Robot Schematics ------------------ None Fabricated ------------ Nothing Alien Tech Used ----------------- None Achievements -------------- None Challenges ------------ None Game ------ Seed PowerPointyLog Manual? 0 Play Time 00:34:32 Cumulative 15.4 hours Start 2025.01.11 @ 13:26:53 End 2025.01.11 @ 13:59:28 Sessions 1 Manual Loads 0 Difficulty Rogue Special Mode None Game No. 72 Rogue 72 Adventurer 0 Explorer 0 Win Type - Total 0 Types 0/0/0/0/0/0/0/0/0 Lore% 16 Gallery% 18 Achievement% 21 Wizard Run 0 Options --------- Layout 0 ASCII 0 Keyboard 0 Movement Mouse Keybinds 0 Fullscreen 1 Font 18/SmallcapsGlow Map View 38x25 Zoom Use 99% Tactical HUD 1 Map Filters NONE Filters NONE Steam 1 RUN: c3bb68b2-d659-4c6e-9c4f-c963a1e7fedd